[Event "Susha Chess Blitz 2022"]
[Site "Shusha"]
[Date "2022.09.24"]
[Round "13"]
[White "Mamedov, Rauf"]
[Black "Yilmaz, Mustafa"]
[Result "1-0"]
[ECO "B50"]
[WhiteElo "2646"]
[BlackElo "2633"]
[Annotator "TA"]
[PlyCount "61"]
[EventDate "2022.09.24"]
[EventType "tourn"]
[EventCountry "AZE"]
[SourceTitle "playchess.com"]
[Source "ChessBase"]
[SourceQuality "1"]
[TimeControl "180+2"]

{[%evp 15,61,-12,-14,-7,0,-40,35,10,31,7,0,0,0,0,1,0,0,-23,-25,-47,0,0,38,22,59,62,183,183,183,195,179,178,185,195,181,140,160,89,239,164,285,299,313,300,641,641,616,609]} 1. e4 {[%emt 0:00:00]} c5 {[%emt 0:00:00]} 2. Nf3 {[%emt 0:00:01]} d6 {[%emt 0:00:01]} 3. Nc3 {[%emt 0:00:01]} Nf6 {[%emt 0:00:01]} 4. g3 {[%emt 0:00:01]} g6 {[%emt 0:00:04]} 5. Bg2 {[%emt 0:00:01]} Bg7 {[%emt 0:00:01]} 6. O-O {[%emt 0:00:01]} O-O {[%emt 0:00:01]} 7. d3 {[%emt 0:00:01]} Nc6 {[%emt 0:00:01]} 8. Re1 {[%emt 0:00:01]} e5 9. a3 $5 {[%mdl 4] A promising side line. A05: Réti Opening: 1 Nf3 Nf6.} h6 {[%emt 0:00:20] [#]} 10. b4 $146 {[%emt 0:00:01]} ({Predecessor:} 10. Rb1 Be6 11. b4 Qd7 12. bxc5 dxc5 13. Be3 b6 14. Qc1 Kh7 15. Qb2 Bg4 16. Ne2 Ne8 {0-1 (28) Kretek,B (2216)-Tomecek,J (2159) Czech Republic 2015}) 10... a6 {[%emt 0:00:10]} (10... cxb4 $15 11. axb4 Bg4) 11. Rb1 {[%emt 0:00:09] White is slightly better.} b6 {[%emt 0:00:32]} 12. h3 {[%emt 0:00:06]} Be6 {[%emt 0:00:03]} 13. Nd2 {[%emt 0:00:09]} cxb4 {[%emt 0:00:33]} 14. axb4 {[%emt 0:00:01]} d5 {[%emt 0:00:02]} 15. b5 {[%emt 0:00:31]} axb5 {[%emt 0:00:07]} 16. exd5 {[%emt 0:01:20]} Nxd5 {[%emt 0:00:01]} 17. Nxb5 {[%emt 0:00:14]} Qd7 {[%emt 0:00:04]} (17... Nd4 $1 $15 18. Nxd4 exd4) 18. c4 $36 {[%emt 0:00:17][%mdl 2048] White has good play.} Nde7 {[%emt 0:00:07]} 19. Ne4 {[%emt 0:00:03][%cal Oc1h6]} Rfd8 {[%emt 0:01:05][%cal Oe6c4]} 20. Bxh6 {[%emt 0:00:07]} Qxd3 {[%emt 0:00:06]} (20... Bxh3 $14 21. Bxh3 Qxh3) 21. Qxd3 $18 {[%emt 0:00:04]} Rxd3 {[%emt 0:00:01]} 22. Bxg7 {[%emt 0:00:01]} Kxg7 {[%emt 0:00:02]} 23. Nc7 {[%emt 0:00:00][%csl LRa8,LRb6]} Rb8 {[%emt 0:00:15]} 24. Nxe6+ {[%emt 0:00:02]} fxe6 {[%emt 0:00:02]} 25. Rb2 {[%emt 0:00:10]} Rd4 {[%emt 0:00:02]} 26. Rc1 {[%emt 0:00:05]} (26. Bf1 $142) 26... Nf5 {[%emt 0:00:09]} (26... Na5 $16) 27. h4 {[%emt 0:00:03]} Kf8 {[%emt 0:00:02]} (27... Nd6 {was worth a try.}) 28. Ng5 {[%emt 0:00:01][%csl LRc6,LRe6]} Nd8 {[%emt 0:00:01]} 29. c5 {[%emt 0:00:01][%cal Bc4c5,Bc5c6,Bc6c7][%mdl 32] [#] Hoping for c6.} b5 $2 {[%emt 0:00:04]} (29... Rc8 30. Rxb6 Ke7) 30. c6 {[%emt 0:00:01]} Rc8 {[%emt 0:00:01]} 31. c7 {[%emt 0:00:00] Weighted Error Value: White=0.17 (very precise) /Black=0.51} 1-0

[Event "Susha Chess Blitz 2022"]
[Site "Shusha"]
[Date "2022.09.24"]
[Round "14"]
[White "Radjabov, Teimour"]
[Black "Guseinov, Gadir"]
[Result "1/2-1/2"]
[ECO "E92"]
[WhiteElo "2747"]
[BlackElo "2661"]
[Annotator "TA"]
[PlyCount "45"]
[EventDate "2022.09.24"]
[EventType "tourn"]
[EventCountry "AZE"]
[SourceTitle "playchess.com"]
[Source "ChessBase"]
[SourceQuality "1"]
[TimeControl "180+2"]

{[%evp 16,18,5,-8,-6]} 1. d4 {[%emt 0:00:02]} Nf6 {[%emt 0:00:01]} 2. c4 {[%emt 0:00:02]} g6 {[%emt 0:00:01]} 3. Nc3 {[%emt 0:00:00]} Bg7 {[%emt 0:00:01]} 4. e4 {[%emt 0:00:01]} d6 {[%emt 0:00:01]} 5. Nf3 {[%emt 0:00:01]} O-O {[%emt 0:00:01]} 6. Be2 {[%emt 0:00:03]} e5 {[%emt 0:00:02]} 7. dxe5 {[%emt 0:00:04]} dxe5 {[%emt 0:00:01]} 8. Qxd8 {[%emt 0:00:02]} Rxd8 {[%emt 0:00:02]} 9. Nd5 {[%emt 0:00:02]} Nxd5 {[%emt 0:00:21] [#] An uneventful encounter. E92: King's Indian: Classical: 6 Be2 e5: 7 dxe5, 7 Be3 and Petrosian System without 7...Nbd7.} ({But not} 9... Nxe4 10. Nxc7 Na6 11. Nxa8 $16) {Predecessor:} 10. cxd5 $146 c6 11. Bc4 b5 12. Bb3 Bb7 13. Bg5 Rd7 14. Rc1 a5 15. a4 h6 16. Be3 cxd5 17. exd5 bxa4 18. Bxa4 Rxd5 19. O-O Na6 20. Nd2 Rad8 21. Nc4 Nc5 22. Nxa5 Nxa4 23. Nxb7 {0-1 (66) Nakamura,H (2736)-Fedoseev,V (2676) Chess.com INT 2020} 1/2-1/2

[Event "Susha Chess Blitz 2022"]
[Site "Shusha"]
[Date "2022.09.24"]
[Round "14"]
[White "Maghsoodloo, Parham"]
[Black "Wang, Hao"]
[Result "1-0"]
[ECO "E06"]
[WhiteElo "2721"]
[BlackElo "2722"]
[Annotator "TA"]
[PlyCount "89"]
[EventDate "2022.09.24"]
[EventType "tourn"]
[EventCountry "AZE"]
[SourceTitle "playchess.com"]
[Source "ChessBase"]
[SourceQuality "1"]
[TimeControl "180+2"]

{[%evp 13,89,12,19,12,7,7,35,33,36,43,48,17,54,45,64,53,43,55,64,61,50,71,72,75,71,31,70,72,78,0,156,149,150,145,141,138,169,168,193,181,179,180,270,262,281,264,318,318,318,318,405,413,404,411,395,366,338,333,338,338,414,331,324,322,330,297,331,331,331,331,628,469,454,426,637,627,720,715]} 1. d4 {[%emt 0:00:05]} Nf6 {[%emt 0:00:01]} 2. c4 {[%emt 0:00:01]} e6 {[%emt 0:00:01]} 3. Nf3 {[%emt 0:00:02]} d5 {[%emt 0:00:02]} 4. g3 {[%emt 0:00:01]} Be7 {[%emt 0:00:01]} 5. Bg2 {[%emt 0:00:01]} O-O {[%emt 0:00:02]} 6. O-O {[%emt 0:00:02]} dxc4 {[%emt 0:00:02]} 7. Qc2 {[%emt 0:00:01]} b5 {[%emt 0:00:01]} 8. a4 {[%emt 0:00:01] E05: Open Catalan: 5 Nf3 Be7.} b4 {[%emt 0:00:01]} 9. Nfd2 {[%emt 0:00:01]} Nd5 {[%emt 0:00:10]} 10. Nxc4 {[%emt 0:00:02] White is slightly better.} c5 {[%emt 0:00:02]} 11. dxc5 {[%emt 0:00:01]} Bxc5 {[%emt 0:00:02]} 12. e4 {[%emt 0:00:16]} Nb6 {[%emt 0:00:05]} 13. Ncd2 {[%emt 0:00:01]} N8d7 {[%emt 0:00:03] [#] Threatens to win with ...Ba6.} 14. a5 {[%emt 0:00:01]} Ba6 {[%emt 0:00:02]} 15. axb6 {[%emt 0:00:20]} Rc8 {[%emt 0:00:01][%cal Oc5f2] And now ...Bxf2+! would win.} 16. Qd1 $1 {[%emt 0:00:40]} Qxb6 {[%emt 0:00:04]} 17. Nb3 $1 {[%emt 0:00:01]} Bxf1 {[%emt 0:00:30]} 18. Qxf1 {[%emt 0:00:02]} h6 {[%emt 0:00:14] [#]} 19. N1d2 $146 {[%emt 0:00:35]} ({Predecessor:} 19. Nxc5 Qxc5 20. Nd2 Nb6 21. Nb3 Qc2 22. Nd4 Qc5 23. Nb5 Nc4 24. Nxa7 Rcd8 25. Qe2 {½-½ (68) Pechac,J (2599)-Parkhov,Y (2450) Terme Catez 2022}) 19... Rfd8 {[%emt 0:00:08]} 20. Nf3 {[%emt 0:00:19] Inhibits Ne5.} Nf6 {[%emt 0:00:39]} 21. Ne1 {[%emt 0:00:11] Pair of Knights!} ({Better is} 21. Qe1 $16) 21... a5 $2 {[%emt 0:00:20] White stays focused until the end.} (21... Ng4 $1 $11 22. Nxc5 Qxc5) 22. Bf3 $16 {[%emt 0:00:19]} (22. Rxa5 $6 Bd4 23. Ra1 (23. Nd3 Ng4 $15) 23... Ng4 24. Nxd4 Qxd4 $14) (22. Nxa5 Ng4 23. Bf3 (23. Nd3 $2 Bxf2+ 24. Nxf2 Rc2 $19) 23... Bxf2+ 24. Kh1 {[#]} Qxa5 $1 25. Rxa5 Rxc1 26. Bxg4 Rxe1 27. Qxe1 Bxe1 $17) 22... Ra8 {[%emt 0:00:10]} 23. Nxc5 {[%emt 0:00:30]} Qxc5 {[%emt 0:00:02]} 24. Be3 $36 {[%emt 0:00:01][%mdl 2048] Keeping Black busy.} Qe5 {[%emt 0:00:08]} 25. Nd3 {[%emt 0:00:01]} Qb5 {[%emt 0:00:02]} 26. Nc5 {[%emt 0:00:00][%cal Bd3c5,Bc5a4,Ba4b6][%mdl 32]} Qc6 {[%emt 0:00:12]} 27. b3 {[%emt 0:00:02] Prevents a4.} e5 {[%emt 0:00:04]} (27... Nd7 {was necessary.} 28. Nxd7 Qxd7) 28. Be2 $18 {[%emt 0:00:05][%cal Bf3e2,Be2c4,Bc4d5][%mdl 32]} Qc8 {[%emt 0:00:23]} 29. f3 {[%emt 0:00:03] Against Ng4} Nd7 {[%emt 0:00:05]} 30. Na4 {[%emt 0:00:01]} Qb7 {[%emt 0:00:07]} 31. Bc4 {[%emt 0:00:01]} Nf6 {[%emt 0:00:02]} 32. Nb6 {[%emt 0:00:05]} Rab8 {[%emt 0:00:03]} 33. Rxa5 {[%emt 0:00:01]} Qc7 {[%emt 0:00:03]} 34. Ra6 {[%emt 0:00:03]} Rd6 {[%emt 0:00:03][%cal Rb8b6]} 35. Nd5 {[%emt 0:00:06]} Nxd5 {[%emt 0:00:03]} 36. Bxd5 {[%emt 0:00:03]} ({Less strong is} 36. exd5 Rxa6 37. Bxa6 Qc3 $16) 36... Rc8 {[%emt 0:00:11]} 37. Rxd6 {[%emt 0:00:05]} ({Not} 37. Ra7 Qc2 38. Bxf7+ Kh7 $18) 37... Qxd6 {[%emt 0:00:02]} 38. Bc4 {[%emt 0:00:02]} Ra8 {[%emt 0:00:01]} 39. Qd3 {[%emt 0:00:03]} Ra1+ {[%emt 0:00:02]} 40. Kg2 {[%emt 0:00:01]} Ra2+ {[%emt 0:00:01]} 41. Kh3 {[%emt 0:00:01]} Qg6 {[%emt 0:00:02]} (41... Qf6) 42. g4 {[%emt 0:00:05][%cal Bg3g4,Bg4h5][%mdl 32] aiming for Qd8+. White is clearly winning.} Qf6 {[%emt 0:00:01] Inhibits Qd8+.} 43. Kg3 {[%emt 0:00:01]} h5 {[%emt 0:00:03]} (43... g5 $142 44. Qb1 Ra8) 44. gxh5 {[%emt 0:00:02]} Kh7 {[%emt 0:00:04]} 45. Qd7 {Weighted Error Value: White=0.15 (very precise) /Black=0.42} 1-0

[Event "Susha Chess Blitz 2022"]
[Site "Shusha"]
[Date "2022.09.24"]
[Round "14"]
[White "Vidit, Santosh Gujrathi"]
[Black "Kasimdzhanov, Rustam"]
[Result "1-0"]
[ECO "D30"]
[WhiteElo "2710"]
[BlackElo "2670"]
[Annotator "TA"]
[PlyCount "57"]
[EventDate "2022.09.24"]
[EventType "tourn"]
[EventCountry "AZE"]
[SourceTitle "playchess.com"]
[Source "ChessBase"]
[SourceQuality "1"]
[TimeControl "180+2"]

{[%evp 12,57,0,0,0,0,0,-6,31,29,54,61,61,54,45,33,26,18,28,33,53,55,120,100,103,118,120,108,241,278,380,349,337,361,376,372,345,273,374,370,535,533,509,409,469,418,724,460]} 1. d4 {[%emt 0:00:01]} d5 {[%emt 0:00:01]} 2. c4 {[%emt 0:00:02]} e6 {[%emt 0:00:00]} 3. Nf3 {[%emt 0:00:02]} c5 {[%emt 0:00:01]} 4. e3 {[%emt 0:00:03]} Nf6 {[%emt 0:00:01]} 5. Nc3 {[%emt 0:00:01]} a6 {[%emt 0:00:01][%cal Ba7a6,Ba6a5][%mdl 32]} 6. dxc5 {[%emt 0:00:11]} Bxc5 {[%emt 0:00:01]} 7. a3 {[%emt 0:00:00]} O-O {[%emt 0:00:02] D40: Queen's Gambit Declined: Semi-Tarrasch with 5 e3.} 8. b4 {[%emt 0:00:03]} Bd6 {[%emt 0:00:03]} 9. Bb2 {[%emt 0:00:09]} a5 {[%emt 0:00:01] The position is equal.} 10. b5 {[%emt 0:00:09] [#]} b6 $146 {[%emt 0:00:04]} ({Predecessor:} 10... dxc4 11. Bxc4 Qc7 12. Qe2 a4 13. O-O Nbd7 14. Rfd1 b6 15. Rac1 Nc5 16. Nb1 Bb7 {0-1 (61) Hobber,A (2196)-Sagit,R (2406) Stockholm 2011}) 11. cxd5 {[%emt 0:00:03]} exd5 {[%emt 0:00:01]} 12. Be2 {[%emt 0:00:03]} ({Don't go for} 12. Nxd5 $2 Nxd5 13. Qd4 (13. Qxd5 $2 Bb4+ 14. Qd2 Bxd2+ $19) 13... Nf6 $19) 12... Bb7 {[%emt 0:00:01]} 13. O-O {[%emt 0:00:03]} Re8 {[%emt 0:00:12]} 14. Na4 {[%emt 0:00:10]} Nbd7 {[%emt 0:00:05]} 15. Rc1 {[%emt 0:00:07]} Ne4 {[%emt 0:00:21]} 16. Nd4 {[%emt 0:00:22]} Qg5 {[%emt 0:01:16] [#]} (16... Ndc5 $14) 17. f4 $1 $16 {[%emt 0:00:06]} Qd8 {[%emt 0:00:34]} 18. Nc6 $36 {[%emt 0:00:15][%mdl 2048] Black is under strong pressure.} Bxc6 {[%emt 0:00:02]} 19. Rxc6 {[%emt 0:00:14]} ({Don't do} 19. bxc6 Ndc5 $14) 19... Ndf6 {[%emt 0:00:16] Loses the game.} (19... Qe7 $16) 20. Nxb6 $18 {[%emt 0:00:07]} Bc5 {[%emt 0:00:10]} 21. Bxf6 {[%emt 0:00:24] A strong pair of Bishops.} Bxe3+ {[%emt 0:00:14]} 22. Kh1 {[%emt 0:00:01]} Nxf6 {[%emt 0:00:10]} 23. Nxa8 {[%emt 0:00:01]} Qxa8 {[%emt 0:00:03]} 24. Qd3 {[%emt 0:00:05]} Qb8 {[%emt 0:00:02]} 25. g3 {[%emt 0:00:05]} h6 {[%emt 0:00:01]} (25... Bb6 $142 26. Bf3 Qd8) 26. Bf3 {[%emt 0:00:07]} Bb6 {[%emt 0:00:03]} 27. Qf5 {[%emt 0:00:09] [#] aiming for Rxf6.} Qd8 {[%emt 0:00:04]} 28. Rfc1 {[%emt 0:00:04]} Be3 {[%emt 0:00:02]} (28... Qe7 $142 29. Rc8 (29. Rxb6 Qe3 $11) 29... Bd8 30. Bxd5 Qe3) 29. Rc8 {[%emt 0:00:05] Weighted Error Value: White=0.17 (very precise) /Black=0.42} 1-0

[Event "Susha Chess Blitz 2022"]
[Site "Shusha"]
[Date "2022.09.24"]
[Round "14"]
[White "Yilmaz, Mustafa"]
[Black "Mamedov, Rauf"]
[Result "0-1"]
[ECO "E94"]
[WhiteElo "2633"]
[BlackElo "2646"]
[Annotator "TA"]
[PlyCount "106"]
[EventDate "2022.09.24"]
[EventType "tourn"]
[EventCountry "AZE"]
[SourceTitle "playchess.com"]
[Source "ChessBase"]
[SourceQuality "1"]
[TimeControl "180+2"]

{[%evp 23,106,54,58,36,48,43,49,41,56,58,72,77,123,126,120,131,131,122,200,200,200,202,264,267,514,383,467,471,454,458,445,441,436,430,951,959,911,890,1337,663,1147,1010,1379,1255,1272,1279,1112,877,1675,844,745,0,0,-576,-153,-153,-135,-323,-314,-344,-332,-470,-469,-458,-368,-529,-480,-472,-472,-472,-472,-472,-465,-465,-465,-465,0,-458,-452,-458,-458,-458,-366,-447,-391]} 1. d4 {[%emt 0:00:02]} d6 {[%emt 0:00:00]} 2. Nf3 {[%emt 0:00:02]} Nf6 {[%emt 0:00:01]} 3. c4 {[%emt 0:00:00]} g6 {[%emt 0:00:01]} 4. Nc3 {[%emt 0:00:01]} Bf5 {[%emt 0:00:00]} 5. Nh4 {[%emt 0:00:03]} Bc8 {[%emt 0:00:06]} 6. e4 {[%emt 0:00:02]} Bg7 {[%emt 0:00:04]} 7. Nf3 {[%emt 0:00:08]} O-O {[%emt 0:00:02]} 8. Be2 {[%emt 0:00:01]} e5 {[%emt 0:00:06]} 9. O-O {[%emt 0:00:01]} Na6 {[%emt 0:00:02]} 10. Re1 {[%emt 0:00:02]} Qe8 {[%emt 0:00:15]} 11. Bf1 {[%emt 0:00:10]} Bg4 {[%emt 0:00:02]} 12. d5 {[%emt 0:00:04]} Nb4 {[%emt 0:00:02]} 13. a3 {[%emt 0:00:01] 13.a3 is setting a new trend. E94: King's Indian: Classical: 6 Be2 e5 7 0-0: Various Black 7th moves.} Bxf3 {[%emt 0:00:01]} 14. gxf3 {[%emt 0:00:01]} Na6 {[%emt 0:00:01]} 15. b4 {[%emt 0:00:01] White is slightly better.} Nb8 $5 {[%emt 0:00:06][%mdl 4] An interesting side line.} 16. c5 {[%emt 0:00:13]} Qe7 {[%emt 0:00:01]} 17. Be3 {[%emt 0:00:05] [#]} Nbd7 $146 {[%emt 0:00:15]} (17... Rd8 $142) ({Predecessor:} 17... Nh5 18. Rc1 Nd7 19. Nb5 a6 20. Nxc7 Rac8 21. Nxa6 bxa6 22. Bxa6 Ra8 23. Bb7 Rxa3 24. c6 Nf4 25. Bxf4 exf4 26. cxd7 Qxd7 {0-1 (35) Citak,S (2312)-Klimov,A (2397) St Petersburg 2006}) 18. c6 $16 {[%emt 0:00:07]} bxc6 {[%emt 0:00:05]} 19. dxc6 {[%emt 0:00:01]} Nb6 {[%emt 0:00:07] [#]} 20. a4 $1 {[%emt 0:00:04]} d5 {[%emt 0:00:25]} (20... Nc8 $16 21. Qd2 Qd8) 21. Bc5 $18 {[%emt 0:00:13]} (21. exd5 $6 Qxb4 22. Bxb6 Qxb6 $14) (21. Nxd5 Nfxd5 22. exd5 Rfd8 $14) 21... Qd8 {[%emt 0:00:12]} 22. a5 {[%emt 0:00:06]} Re8 {[%emt 0:00:14]} 23. axb6 cxb6 {[%emt 0:00:01]} (23... axb6 24. Rxa8 (24. exd5 Rxa1 25. Qxa1 bxc5 $15) 24... Qxa8 25. Bxb6 (25. Nxd5 Nxd5 26. Qxd5 Rd8 $16) 25... cxb6) 24. Nxd5 {[%emt 0:01:15]} bxc5 {[%emt 0:00:05]} 25. c7 {[%emt 0:00:06]} Qc8 {[%emt 0:00:11]} 26. Ba6 {[%emt 0:00:09]} Qh3 {[%emt 0:00:11]} 27. bxc5 {[%emt 0:00:17]} Nxd5 {[%emt 0:00:05]} 28. Qxd5 {[%emt 0:00:28]} ({Weaker is} 28. exd5 e4 29. c8=Q (29. Rxe4 Rxe4 30. Bf1 Qd7 $16) (29. fxe4 Be5 $14) 29... Raxc8 30. Bxc8 (30. Rxe4 Rxe4 31. Bxc8 Qxc8 $11) (30. fxe4 $2 Be5 $17) 30... Qxc8 $18) 28... Qxf3 {[%emt 0:00:02]} (28... Bh6 $142 29. Bc4 (29. Bb7 Bf4 $11) 29... Rf8) 29. Re3 {[%emt 0:00:01]} Qg4+ {[%emt 0:00:07]} 30. Rg3 {[%emt 0:00:01]} Qf4 {[%emt 0:00:01]} 31. Kg2 {[%emt 0:00:04]} (31. Bb7 $142) 31... h5 {[%emt 0:00:15]} 32. h3 {[%emt 0:00:07] aiming for Bb7.} Rf8 {[%emt 0:00:16]} 33. Bb7 {[%emt 0:00:02]} Rae8 {[%emt 0:00:01]} 34. Rxa7 {[%emt 0:00:03]} Re7 {[%emt 0:00:07]} 35. Bc6 {[%emt 0:00:05]} Qf6 {[%emt 0:00:06]} 36. Qd6 {[%emt 0:00:01] Hoping for Ra8.} Re6 {[%emt 0:00:01][%cal Be7e6,Be6c6,Bc6c7][%mdl 32]} 37. Qd7 $2 {[%emt 0:00:05]} Rxc6 $11 {[%emt 0:00:01]} 38. Rb7 $2 {[%emt 0:00:02][%mdl 8192]} (38. Rf3 $11 {and White is okay.} Qe6 39. Qxe6 Rxe6 {[#]} 40. Rxf7 $1) 38... Qe6 $2 {[%emt 0:00:08]} (38... Rxc5 $19 39. Rbb3 Rc2) 39. Qxe6 $17 {[%emt 0:00:01]} fxe6 {[%emt 0:00:00]} 40. Rxg6 $2 {[%emt 0:00:02]} (40. Rd3 $17 {only move.}) 40... Rc8 $19 {[%emt 0:00:01]} 41. Rb8 {[%emt 0:00:03]} R6xc7 {[%emt 0:00:01]} 42. Rxc8+ {[%emt 0:00:01]} (42. Rb6 {was necessary.}) 42... Rxc8 {[%emt 0:00:01]} 43. Rxe6 {[%emt 0:00:03]} Rxc5 {[%emt 0:00:00][%mdl 4096] Endgame KRB-KR} 44. h4 {[%emt 0:00:01]} (44. Rg6 $142 Rc4 45. Kf3) 44... Kf7 {[%emt 0:00:01]} 45. Ra6 {[%emt 0:00:01]} Bf6 {[%emt 0:00:01]} 46. Kg3 {[%emt 0:00:01]} Rc1 {[%emt 0:00:09] Strongly threatening ...Rg1+.} 47. Ra7+ {[%emt 0:00:01]} Kg6 {[%emt 0:00:01]} 48. f3 {[%emt 0:00:03]} Rg1+ {[%emt 0:00:01]} 49. Kh2 {[%emt 0:00:01]} Rc1 {[%emt 0:00:06]} (49... Rd1 $19 50. Ra6 Kf7) 50. Ra6 $2 {[%emt 0:00:01][%mdl 8192]} (50. Kg3 $1 $11 Rc6 51. Ra5) 50... Kf7 {[%emt 0:00:03]} 51. Kg3 {[%emt 0:00:02]} Rh1 {[%emt 0:00:02]} 52. Ra7+ {[%emt 0:00:02]} Be7 {[%emt 0:00:02]} 53. Kg2 {[%emt 0:00:03]} Rxh4 {[%emt 0:00:02] Never resign too early!  Weighted Error Value: White=0.94/Black=0.71} 0-1

[Event "Susha Chess Blitz 2022"]
[Site "Shusha"]
[Date "2022.09.24"]
[Round "14"]
[White "Durarbayli, Vasif"]
[Black "Mamedyarov, Shakhriyar"]
[Result "1/2-1/2"]
[ECO "B02"]
[WhiteElo "2628"]
[BlackElo "2757"]
[Annotator "TA"]
[PlyCount "35"]
[EventDate "2022.09.24"]
[EventType "tourn"]
[EventCountry "AZE"]
[SourceTitle "playchess.com"]
[Source "ChessBase"]
[SourceQuality "1"]
[TimeControl "180+2"]

{[%evp 18,21,13,10,0,0]} 1. e4 {[%emt 0:00:00][%cal Be2e4,Be4e5][%mdl 32]} Nf6 {[%emt 0:00:08]} 2. e5 {[%emt 0:00:04]} Nd5 {[%emt 0:00:01]} 3. c4 {[%emt 0:00:01][%cal Bc2c4,Bc4c5][%mdl 32]} Nb6 {[%emt 0:00:01]} 4. c5 {[%emt 0:00:01]} Nd5 {[%emt 0:00:01]} 5. Nc3 {[%emt 0:00:00]} e6 {[%emt 0:00:01]} 6. d4 {[%emt 0:00:02]} d6 {[%emt 0:00:03]} 7. cxd6 {[%emt 0:00:02]} cxd6 {[%emt 0:00:01]} 8. Nf3 {[%emt 0:00:01]} Nc6 {[%emt 0:00:03]} 9. exd6 {[%emt 0:00:08] 9.Bd3 is more fashionable.} Bxd6 {[%emt 0:00:03]} 10. Bd3 {[%emt 0:00:01]} O-O {[%emt 0:00:10] B22: Sicilian: 2 c3.} 11. O-O {[%emt 0:00:02] [#] Not much happened in this game.} {Predecessor:} Nce7 $146 12. Ne4 b6 13. Re1 Bb7 14. a3 Ng6 15. Neg5 Rc8 16. Ne5 Bxe5 17. dxe5 Rxc1 18. Qxc1 {0-1 (51) Giri,A (2764)-Gazik,V (2539) Chess.com INT 2020} 1/2-1/2

[Event "Susha Chess Blitz 2022"]
[Site "Shusha"]
[Date "2022.09.24"]
[Round "15"]
[White "Radjabov, Teimour"]
[Black "Mamedov, Rauf"]
[Result "1/2-1/2"]
[ECO "E94"]
[WhiteElo "2747"]
[BlackElo "2646"]
[Annotator "TA"]
[PlyCount "34"]
[EventDate "2022.09.24"]
[EventType "tourn"]
[EventCountry "AZE"]
[SourceTitle "playchess.com"]
[Source "ChessBase"]
[SourceQuality "1"]
[TimeControl "180+2"]

{[%evp 19,25,31,41,-14,0,0,0,0]} 1. d4 {[%emt 0:00:10]} Nf6 {[%emt 0:00:02]} 2. c4 {[%emt 0:00:01]} g6 {[%emt 0:00:02]} 3. Nc3 {[%emt 0:00:01]} Bg7 {[%emt 0:00:02]} 4. e4 {[%emt 0:00:03]} d6 {[%emt 0:00:03]} 5. Be2 {[%emt 0:00:01]} O-O {[%emt 0:00:02]} 6. Nf3 {[%emt 0:00:02]} e5 {[%emt 0:00:02]} 7. O-O {[%emt 0:00:09]} exd4 {[%emt 0:00:11]} 8. Nxd4 {[%emt 0:00:02]} Re8 {[%emt 0:00:01]} 9. f3 {[%emt 0:00:04]} Nc6 {[%emt 0:00:02]} 10. Be3 {[%emt 0:00:15]} Nh5 {[%emt 0:00:02][%cal Oh5f4]} 11. g4 {[%emt 0:00:06] E94: King's Indian: Classical: 6 Be2 e5 7 0-0: Various Black 7th moves.} (11. f4 $14) 11... Be5 {[%emt 0:00:08][%cal Od8h4]} 12. gxh5 {[%emt 0:00:53] [#] Hoping for f4.} Bxh2+ {[%emt 0:00:05]} 13. Kxh2 {[%emt 0:00:14] [#] An interesting draw.  Weighted Error Value: White=0.31/Black=0.05 (flawless)} {Predecessor:} Qh4+ $146 14. Kg1 Qg3+ 15. Kh1 Re5 16. f4 Qh3+ 17. Kg1 Qg3+ {½-½ (17) Averkin,O (2455)-Baikov,V (2520) Sochi 1996} 1/2-1/2